[Event "Titled Tuesday Blitz May 2 Late 2023"]
[White "Ricaurte Lopez, Juan Carlos"]
[Black "Fajdetic, Hrvoje"]
[WhiteFideId "3600327"]
[BlackFideId "14501945"]
[WhiteElo "2200"]
[BlackElo "2185"]
[Result "1-0"]
[Round "08"]
[TimeControl "180+2"]
[Date "2023.05.02"]
[WhiteClock "0:00:28"]
[BlackClock "0:00:10"]

1. e4 {[%clk 0:03:00]}  c5 {[%clk 0:02:56]} 2. Nf3 {[%clk 0:02:57]}  a6 {[%clk 0:02:56]} 3. d4 {[%clk 0:02:58]}  cxd4 {[%clk 0:02:57]} 4. Nxd4 {[%clk 0:02:57]}  Nf6 {[%clk 0:02:58]} 5. Nc3 {[%clk 0:02:55]}  e5 {[%clk 0:02:57]} 6. Nf3 {[%clk 0:02:51]}  Nc6 {[%clk 0:02:55]} 7. Bc4 {[%clk 0:02:50]}  Bb4 {[%clk 0:02:53]} 8. Bg5 {[%clk 0:02:42]}  Qa5 {[%clk 0:02:32]} 9. Bd2 {[%clk 0:02:17]}  Qc5 {[%clk 0:02:28]} 10. Qe2 {[%clk 0:02:09]}  Nd4 {[%clk 0:02:24]} 11. Qd3 {[%clk 0:01:58]}  Nxf3+ {[%clk 0:02:16]} 12. gxf3 {[%clk 0:01:54]}  O-O {[%clk 0:02:15]} 13. Rg1 {[%clk 0:01:43]}  Bxc3 {[%clk 0:01:42]} 14. Bxc3 {[%clk 0:01:38]}  b5 {[%clk 0:01:37]} 15. Bb3 {[%clk 0:01:29]}  Bb7 {[%clk 0:01:19]} 16. O-O-O {[%clk 0:01:26]}  Rfd8 {[%clk 0:01:12]} 17. Qe3 {[%clk 0:01:05]}  Qxe3+ {[%clk 0:01:04]} 18. fxe3 {[%clk 0:01:01]}  d6 {[%clk 0:01:02]} 19. Rd2 {[%clk 0:01:00]}  a5 {[%clk 0:00:54]} 20. a3 {[%clk 0:00:54]}  b4 {[%clk 0:00:47]} 21. Rdg2 {[%clk 0:00:43]}  bxc3 {[%clk 0:00:44]} 22. Rxg7+ {[%clk 0:00:43]}  Kf8 {[%clk 0:00:43]} 23. Rxf7+ {[%clk 0:00:40]}  Ke8 {[%clk 0:00:43]} 24. Rxb7 {[%clk 0:00:37]}  a4 {[%clk 0:00:36]} 25. Be6 {[%clk 0:00:34]}  d5 {[%clk 0:00:20]} 26. exd5 {[%clk 0:00:31]}  cxb2+ {[%clk 0:00:16]} 27. Kb1 {[%clk 0:00:29]}  Rab8 {[%clk 0:00:10]} 28. Rf7 {[%clk 0:00:28]} 1-0


[Site "https://www.chess.com"]

[Event "Titled Tuesday Blitz May 2 Late 2023"]
[White "Rose, Felix"]
[Black "Dias, Joao Batista"]
[WhiteFideId "5105722"]
[BlackFideId "2108240"]
[WhiteElo "2039"]
[BlackElo "1907"]
[Result "1-0"]
[Round "08"]
[TimeControl "180+2"]
[Date "2023.05.02"]
[WhiteClock "0:00:39"]
[BlackClock "0:01:30"]

1. d4 {[%clk 0:02:59]}  d5 {[%clk 0:02:59]} 2. Nf3 {[%clk 0:02:59]}  e6 {[%clk 0:02:59]} 3. e3 {[%clk 0:02:59]}  Be7 {[%clk 0:03:00]} 4. Bd3 {[%clk 0:02:59]}  Nf6 {[%clk 0:03:00]} 5. Nbd2 {[%clk 0:02:59]}  Nbd7 {[%clk 0:03:01]} 6. O-O {[%clk 0:03:00]}  c5 {[%clk 0:03:01]} 7. c3 {[%clk 0:03:00]}  O-O {[%clk 0:03:01]} 8. Re1 {[%clk 0:02:59]}  b6 {[%clk 0:03:01]} 9. Qe2 {[%clk 0:02:53]}  Bb7 {[%clk 0:03:01]} 10. e4 {[%clk 0:02:52]}  Nxe4 {[%clk 0:03:00]} 11. Nxe4 {[%clk 0:02:53]}  dxe4 {[%clk 0:03:01]} 12. Bxe4 {[%clk 0:02:53]}  Bxe4 {[%clk 0:03:01]} 13. Qxe4 {[%clk 0:02:53]}  Nf6 {[%clk 0:03:01]} 14. Qh4 {[%clk 0:02:52]}  Nd5 {[%clk 0:03:00]} 15. Qg3 {[%clk 0:02:48]}  Bd6 {[%clk 0:02:58]} 16. Qg4 {[%clk 0:02:43]}  Qf6 {[%clk 0:02:53]} 17. dxc5 {[%clk 0:02:40]}  Bxc5 {[%clk 0:02:51]} 18. Bg5 {[%clk 0:02:39]}  Qg6 {[%clk 0:02:51]} 19. Nh4 {[%clk 0:02:34]}  Qd3 {[%clk 0:02:43]} 20. Bh6 {[%clk 0:02:14]}  g6 {[%clk 0:02:29]} 21. Rad1 {[%clk 0:02:08]}  Qc2 {[%clk 0:02:16]} 22. Rd2 {[%clk 0:02:00]}  f5 {[%clk 0:02:12]} 23. Qe2 {[%clk 0:01:53]}  Qe4 {[%clk 0:02:07]} 24. Qxe4 {[%clk 0:01:49]}  fxe4 {[%clk 0:02:08]} 25. Bxf8 {[%clk 0:01:50]}  Rxf8 {[%clk 0:02:08]} 26. Rxe4 {[%clk 0:01:50]}  Kg7 {[%clk 0:02:01]} 27. Rxe6 {[%clk 0:01:47]}  Nf4 {[%clk 0:02:00]} 28. Rd7+ {[%clk 0:01:22]}  Kh6 {[%clk 0:01:58]} 29. Re4 {[%clk 0:01:14]}  Nh5 {[%clk 0:01:48]} 30. Nf3 {[%clk 0:01:09]}  Nf6 {[%clk 0:01:44]} 31. Rh4+ {[%clk 0:01:07]}  Nh5 {[%clk 0:01:42]} 32. b4 {[%clk 0:01:04]}  g5 {[%clk 0:01:33]} 33. Rxh5+ {[%clk 0:00:47]}  Kxh5 {[%clk 0:01:32]} 34. bxc5 {[%clk 0:00:47]}  bxc5 {[%clk 0:01:32]} 35. Rxh7+ {[%clk 0:00:46]}  Kg6 {[%clk 0:01:31]} 36. Rxa7 {[%clk 0:00:45]}  Rd8 {[%clk 0:01:32]} 37. g4 {[%clk 0:00:42]}  Rd3 {[%clk 0:01:30]} 38. Ne5+ {[%clk 0:00:39]} 1-0


[Site "https://www.chess.com"]

[Event "Titled Tuesday Blitz May 2 Late 2023"]
[White "Hartikainen, Jarmo"]
[Black "Vargas, Mauricio"]
[WhiteFideId "503134"]
[BlackFideId "4404572"]
[WhiteElo "2108"]
[BlackElo "1998"]
[Result "1-0"]
[Round "08"]
[TimeControl "180+2"]
[Date "2023.05.02"]
[WhiteClock "0:00:09"]
[BlackClock "0:00:02"]

1. e4 {[%clk 0:03:00]}  c5 {[%clk 0:02:59]} 2. c3 {[%clk 0:03:00]}  d6 {[%clk 0:02:58]} 3. d4 {[%clk 0:03:00]}  cxd4 {[%clk 0:02:58]} 4. cxd4 {[%clk 0:03:00]}  Bd7 {[%clk 0:02:58]} 5. Nc3 {[%clk 0:02:59]}  g6 {[%clk 0:02:53]} 6. Be3 {[%clk 0:02:57]}  Bg7 {[%clk 0:02:53]} 7. Qd2 {[%clk 0:02:55]}  a6 {[%clk 0:02:51]} 8. f3 {[%clk 0:02:54]}  b5 {[%clk 0:02:50]} 9. Bd3 {[%clk 0:02:52]}  Nc6 {[%clk 0:02:50]} 10. Nge2 {[%clk 0:02:45]}  e6 {[%clk 0:02:23]} 11. Rc1 {[%clk 0:02:40]}  b4 {[%clk 0:02:16]} 12. Nd1 {[%clk 0:02:37]}  d5 {[%clk 0:02:14]} 13. e5 {[%clk 0:02:34]}  a5 {[%clk 0:02:09]} 14. O-O {[%clk 0:02:14]}  Nge7 {[%clk 0:02:07]} 15. g4 {[%clk 0:01:37]}  h5 {[%clk 0:02:05]} 16. h3 {[%clk 0:01:30]}  hxg4 {[%clk 0:02:05]} 17. hxg4 {[%clk 0:01:30]}  Qc7 {[%clk 0:01:18]} 18. Kg2 {[%clk 0:01:28]}  O-O-O {[%clk 0:01:11]} 19. Nf2 {[%clk 0:01:25]}  Kb7 {[%clk 0:01:06]} 20. a3 {[%clk 0:01:22]}  Qb8 {[%clk 0:01:03]} 21. Bb5 {[%clk 0:01:05]}  f6 {[%clk 0:00:43]} 22. f4 {[%clk 0:00:45]}  fxe5 {[%clk 0:00:40]} 23. fxe5 {[%clk 0:00:38]}  Rdf8 {[%clk 0:00:39]} 24. Nd3 {[%clk 0:00:38]}  Ka7 {[%clk 0:00:25]} 25. Bxc6 {[%clk 0:00:23]}  Nxc6 {[%clk 0:00:24]} 26. axb4 {[%clk 0:00:23]}  axb4 {[%clk 0:00:23]} 27. Ra1+ {[%clk 0:00:23]}  Kb6 {[%clk 0:00:22]} 28. Nc5 {[%clk 0:00:23]}  Be8 {[%clk 0:00:20]} 29. Ra6+ {[%clk 0:00:22]}  Kc7 {[%clk 0:00:19]} 30. Nxe6+ {[%clk 0:00:20]}  Kd7 {[%clk 0:00:18]} 31. Nxf8+ {[%clk 0:00:20]}  Bxf8 {[%clk 0:00:17]} 32. Nf4 {[%clk 0:00:19]}  Nxe5 {[%clk 0:00:16]} 33. dxe5 {[%clk 0:00:15]}  Qxe5 {[%clk 0:00:16]} 34. Qxd5+ {[%clk 0:00:15]}  Qxd5+ {[%clk 0:00:15]} 35. Nxd5 {[%clk 0:00:16]}  Bd6 {[%clk 0:00:15]} 36. Nf6+ {[%clk 0:00:16]}  Ke6 {[%clk 0:00:14]} 37. Bf4 {[%clk 0:00:13]}  Bb5 {[%clk 0:00:01]} 38. Re1+ {[%clk 0:00:10]}  Kxf6 {[%clk 0:00:02]} 39. Rxd6+ {[%clk 0:00:09]} 1-0


[Site "https://www.chess.com"]

[Event "Titled Tuesday Blitz May 2 Late 2023"]
[White "Wang, Alexander J"]
[Black "Sanchez, Robert"]
[WhiteFideId "30955270"]
[BlackFideId "2034360"]
[WhiteElo "1815"]
[BlackElo "1966"]
[Result "1-0"]
[Round "08"]
[TimeControl "180+2"]
[Date "2023.05.02"]
[WhiteClock "0:00:21"]
[BlackClock "0:00:58"]

1. e4 {[%clk 0:02:53]}  e6 {[%clk 0:02:59]} 2. d4 {[%clk 0:02:53]}  d5 {[%clk 0:03:00]} 3. e5 {[%clk 0:02:54]}  b6 {[%clk 0:02:58]} 4. c3 {[%clk 0:02:54]}  Qd7 {[%clk 0:02:58]} 5. Nf3 {[%clk 0:02:55]}  Ba6 {[%clk 0:02:58]} 6. Bxa6 {[%clk 0:02:54]}  Nxa6 {[%clk 0:02:59]} 7. O-O {[%clk 0:02:55]}  c5 {[%clk 0:02:59]} 8. Be3 {[%clk 0:02:55]}  Nc7 {[%clk 0:02:59]} 9. Nbd2 {[%clk 0:02:54]}  Ne7 {[%clk 0:02:59]} 10. dxc5 {[%clk 0:02:53]}  Nf5 {[%clk 0:03:00]} 11. cxb6 {[%clk 0:02:52]}  Nxe3 {[%clk 0:03:00]} 12. fxe3 {[%clk 0:02:52]}  axb6 {[%clk 0:03:00]} 13. Nd4 {[%clk 0:02:53]}  Be7 {[%clk 0:02:59]} 14. Qg4 {[%clk 0:02:51]}  O-O {[%clk 0:02:59]} 15. N2f3 {[%clk 0:02:48]}  b5 {[%clk 0:02:56]} 16. Ng5 {[%clk 0:02:43]}  h6 {[%clk 0:02:54]} 17. Ngf3 {[%clk 0:02:30]}  b4 {[%clk 0:02:54]} 18. e4 {[%clk 0:02:14]}  bxc3 {[%clk 0:02:54]} 19. bxc3 {[%clk 0:02:09]}  Ra3 {[%clk 0:02:53]} 20. exd5 {[%clk 0:02:08]}  Nxd5 {[%clk 0:02:53]} 21. Rfe1 {[%clk 0:01:58]}  Rxc3 {[%clk 0:02:50]} 22. Qe4 {[%clk 0:01:36]}  Rfc8 {[%clk 0:02:44]} 23. Rad1 {[%clk 0:01:25]}  Qa4 {[%clk 0:02:35]} 24. Nf5 {[%clk 0:00:56]}  Qa7+ {[%clk 0:02:04]} 25. Kh1 {[%clk 0:00:49]}  Bf8 {[%clk 0:01:58]} 26. Nd6 {[%clk 0:00:41]}  Rb8 {[%clk 0:01:45]} 27. Rb1 {[%clk 0:00:35]}  Rxb1 {[%clk 0:01:23]} 28. Rxb1 {[%clk 0:00:35]}  Qxa2 {[%clk 0:01:22]} 29. Rg1 {[%clk 0:00:28]}  Qf2 {[%clk 0:01:01]} 30. Qd4 {[%clk 0:00:21]}  Rxf3 {[%clk 0:00:58]} 1-0


[Site "https://www.chess.com"]

[Event "Titled Tuesday Blitz May 2 Late 2023"]
[White "Sailer, Mike"]
[Black "Ismayilova, Khanim"]
[WhiteFideId "2012901"]
[BlackFideId "13429019"]
[WhiteElo "2109"]
[BlackElo "1633"]
[Result "1-0"]
[Round "08"]
[TimeControl "180+2"]
[Date "2023.05.02"]
[WhiteClock "0:00:20"]
[BlackClock "0:00:01"]

1. d4 {[%clk 0:02:59]}  d5 {[%clk 0:02:59]} 2. Bg5 {[%clk 0:02:55]}  Nf6 {[%clk 0:02:57]} 3. Bxf6 {[%clk 0:02:54]}  exf6 {[%clk 0:02:57]} 4. e3 {[%clk 0:02:55]}  Bd6 {[%clk 0:02:56]} 5. c4 {[%clk 0:02:55]}  c6 {[%clk 0:02:55]} 6. cxd5 {[%clk 0:02:56]}  cxd5 {[%clk 0:02:55]} 7. Nc3 {[%clk 0:02:56]}  Be6 {[%clk 0:02:50]} 8. Qb3 {[%clk 0:02:56]}  O-O {[%clk 0:02:47]} 9. Qxb7 {[%clk 0:02:56]}  Nd7 {[%clk 0:02:40]} 10. Qb3 {[%clk 0:02:56]}  Rb8 {[%clk 0:02:40]} 11. Qc2 {[%clk 0:02:56]}  Qb6 {[%clk 0:02:38]} 12. Rb1 {[%clk 0:02:52]}  Rfc8 {[%clk 0:02:25]} 13. Bd3 {[%clk 0:02:51]}  Bb4 {[%clk 0:02:19]} 14. Ne2 {[%clk 0:02:48]}  Qa5 {[%clk 0:02:00]} 15. O-O {[%clk 0:02:33]}  g6 {[%clk 0:02:00]} 16. a3 {[%clk 0:02:29]}  Bd6 {[%clk 0:01:54]} 17. g3 {[%clk 0:02:29]}  Qc7 {[%clk 0:01:07]} 18. Qd2 {[%clk 0:02:17]}  Nb6 {[%clk 0:00:58]} 19. Nb5 {[%clk 0:02:09]}  Qd7 {[%clk 0:00:58]} 20. Nxd6 {[%clk 0:02:07]}  Qxd6 {[%clk 0:00:57]} 21. Qa5 {[%clk 0:01:50]}  Qd7 {[%clk 0:00:40]} 22. Bb5 {[%clk 0:01:37]}  Qb7 {[%clk 0:00:37]} 23. Ba6 {[%clk 0:01:34]}  Qd7 {[%clk 0:00:16]} 24. Bxc8 {[%clk 0:01:30]}  Rxc8 {[%clk 0:00:17]} 25. Nc3 {[%clk 0:01:05]}  Nc4 {[%clk 0:00:16]} 26. Qa4 {[%clk 0:00:34]}  Qxa4 {[%clk 0:00:15]} 27. Nxa4 {[%clk 0:00:34]}  Nd2 {[%clk 0:00:10]} 28. Nc5 {[%clk 0:00:32]}  Nxf1 {[%clk 0:00:09]} 29. Kxf1 {[%clk 0:00:32]}  Bf5 {[%clk 0:00:07]} 30. Rc1 {[%clk 0:00:31]}  Rb8 {[%clk 0:00:07]} 31. b4 {[%clk 0:00:31]}  Kf8 {[%clk 0:00:04]} 32. Ke2 {[%clk 0:00:27]}  Ke7 {[%clk 0:00:04]} 33. Rc3 {[%clk 0:00:20]}  Rb5 {[%clk 0:00:04]} 34. Rb3 {[%clk 0:00:20]}  Bd7 {[%clk 0:00:01]} 35. a4 {[%clk 0:00:19]}  Rb8 {[%clk 0:00:01]} 36. b5 {[%clk 0:00:20]} 1-0


[Site "https://www.chess.com"]

[Event "Titled Tuesday Blitz May 2 Late 2023"]
[White "Hakobyan, Aram"]
[Black "Sarana, Alexey"]
[WhiteFideId "13306677"]
[BlackFideId "24133795"]
[WhiteElo "2584"]
[BlackElo "2714"]
[Result "1-0"]
[Round "09"]
[TimeControl "180+2"]
[Date "2023.05.02"]
[WhiteClock "0:00:18"]
[BlackClock "0:00:01"]

1. d4 {[%clk 0:03:00]}  Nf6 {[%clk 0:02:59]} 2. c4 {[%clk 0:03:01]}  e6 {[%clk 0:03:00]} 3. Nc3 {[%clk 0:03:01]}  d5 {[%clk 0:03:01]} 4. Nf3 {[%clk 0:03:01]}  Nbd7 {[%clk 0:03:00]} 5. Bg5 {[%clk 0:02:56]}  Bb4 {[%clk 0:02:59]} 6. cxd5 {[%clk 0:02:56]}  exd5 {[%clk 0:02:58]} 7. e3 {[%clk 0:02:55]}  h6 {[%clk 0:02:58]} 8. Bxf6 {[%clk 0:02:55]}  Qxf6 {[%clk 0:02:55]} 9. Qb3 {[%clk 0:02:56]}  Qd6 {[%clk 0:02:53]} 10. a3 {[%clk 0:02:51]}  Ba5 {[%clk 0:02:53]} 11. Qb5 {[%clk 0:02:51]}  Bxc3+ {[%clk 0:02:30]} 12. bxc3 {[%clk 0:02:52]}  O-O {[%clk 0:02:30]} 13. Be2 {[%clk 0:02:51]}  b6 {[%clk 0:02:28]} 14. O-O {[%clk 0:02:48]}  c5 {[%clk 0:02:25]} 15. a4 {[%clk 0:02:46]}  Bb7 {[%clk 0:02:22]} 16. Qb2 {[%clk 0:02:35]}  Bc6 {[%clk 0:02:19]} 17. Bb5 {[%clk 0:02:26]}  a6 {[%clk 0:02:12]} 18. Bxc6 {[%clk 0:02:24]}  Qxc6 {[%clk 0:02:13]} 19. Rfb1 {[%clk 0:02:19]}  Rfb8 {[%clk 0:02:11]} 20. h3 {[%clk 0:02:19]}  Nf6 {[%clk 0:02:09]} 21. Ne5 {[%clk 0:02:19]}  Qd6 {[%clk 0:02:08]} 22. Qa3 {[%clk 0:02:08]}  Ne4 {[%clk 0:02:07]} 23. Rb2 {[%clk 0:02:08]}  Rb7 {[%clk 0:01:35]} 24. Nd3 {[%clk 0:02:07]}  Rc8 {[%clk 0:01:34]} 25. Rab1 {[%clk 0:02:02]}  g5 {[%clk 0:01:09]} 26. dxc5 {[%clk 0:01:17]}  Nxc5 {[%clk 0:01:08]} 27. Rd1 {[%clk 0:01:15]}  Ne4 {[%clk 0:00:39]} 28. Qxd6 {[%clk 0:01:14]}  Nxd6 {[%clk 0:00:40]} 29. Nb4 {[%clk 0:01:13]}  Ne4 {[%clk 0:00:40]} 30. Nxd5 {[%clk 0:01:12]}  Kg7 {[%clk 0:00:13]} 31. Rd4 {[%clk 0:01:00]}  Rc5 {[%clk 0:00:11]} 32. c4 {[%clk 0:00:47]}  Nf6 {[%clk 0:00:04]} 33. Nxf6 {[%clk 0:00:39]}  Kxf6 {[%clk 0:00:05]} 34. Rd6+ {[%clk 0:00:39]}  Kg7 {[%clk 0:00:05]} 35. Rbxb6 {[%clk 0:00:40]}  Rxb6 {[%clk 0:00:03]} 36. Rxb6 {[%clk 0:00:40]}  a5 {[%clk 0:00:03]} 37. Rb5 {[%clk 0:00:40]}  Rxc4 {[%clk 0:00:04]} 38. Rxa5 {[%clk 0:00:41]}  Rc1+ {[%clk 0:00:04]} 39. Kh2 {[%clk 0:00:41]}  Rc2 {[%clk 0:00:03]} 40. Kg3 {[%clk 0:00:35]}  Kg6 {[%clk 0:00:03]} 41. Ra8 {[%clk 0:00:31]}  h5 {[%clk 0:00:04]} 42. a5 {[%clk 0:00:32]}  h4+ {[%clk 0:00:04]} 43. Kf3 {[%clk 0:00:32]}  Ra2 {[%clk 0:00:04]} 44. a6 {[%clk 0:00:32]}  f6 {[%clk 0:00:04]} 45. a7 {[%clk 0:00:31]}  Kg7 {[%clk 0:00:04]} 46. Ke4 {[%clk 0:00:30]}  Ra4+ {[%clk 0:00:04]} 47. Kd5 {[%clk 0:00:30]}  Ra5+ {[%clk 0:00:04]} 48. Kc4 {[%clk 0:00:30]}  Ra1 {[%clk 0:00:04]} 49. Kd3 {[%clk 0:00:23]}  Ra3+ {[%clk 0:00:04]} 50. Ke4 {[%clk 0:00:23]}  Ra4+ {[%clk 0:00:05]} 51. Kf5 {[%clk 0:00:23]}  Ra5+ {[%clk 0:00:05]} 52. Ke6 {[%clk 0:00:23]}  Ra6+ {[%clk 0:00:05]} 53. Kd7 {[%clk 0:00:23]}  Ra1 {[%clk 0:00:05]} 54. e4 {[%clk 0:00:22]}  Ra4 {[%clk 0:00:03]} 55. Kc6 {[%clk 0:00:22]}  Ra1 {[%clk 0:00:03]} 56. Kd5 {[%clk 0:00:21]}  Rd1+ {[%clk 0:00:03]} 57. Ke6 {[%clk 0:00:21]}  Ra1 {[%clk 0:00:03]} 58. Kf5 {[%clk 0:00:21]}  Ra5+ {[%clk 0:00:03]} 59. Kg4 {[%clk 0:00:21]}  Ra4 {[%clk 0:00:04]} 60. f3 {[%clk 0:00:18]}  Ra2 {[%clk 0:00:02]} 61. g3 {[%clk 0:00:17]}  hxg3 {[%clk 0:00:02]} 62. Kxg3 {[%clk 0:00:18]}  Ra3 {[%clk 0:00:02]} 63. h4 {[%clk 0:00:18]}  gxh4+ {[%clk 0:00:01]} 64. Kxh4 {[%clk 0:00:19]}  Ra4 {[%clk 0:00:01]} 65. Kg3 {[%clk 0:00:18]}  Ra3 {[%clk 0:00:01]} 66. Kg4 {[%clk 0:00:18]} 1-0


[Site "https://www.chess.com"]

[Event "Titled Tuesday Blitz May 2 Late 2023"]
[White "Deac, Bogdan-Daniel"]
[Black "Ter-Sahakyan, Samvel"]
[WhiteFideId "1226380"]
[BlackFideId "13302531"]
[WhiteElo "2649"]
[BlackElo "2566"]
[Result "1-0"]
[Round "09"]
[TimeControl "180+2"]
[Date "2023.05.02"]
[WhiteClock "0:00:04"]
[BlackClock "0:00:02"]

1. e4 {[%clk 0:03:00]}  c5 {[%clk 0:02:59]} 2. Nf3 {[%clk 0:02:55]}  e6 {[%clk 0:02:59]} 3. g3 {[%clk 0:02:54]}  d5 {[%clk 0:02:59]} 4. Nc3 {[%clk 0:02:52]}  Nf6 {[%clk 0:02:37]} 5. d3 {[%clk 0:02:51]}  d4 {[%clk 0:02:27]} 6. Ne2 {[%clk 0:02:51]}  g6 {[%clk 0:02:24]} 7. Bg2 {[%clk 0:02:46]}  Bg7 {[%clk 0:02:24]} 8. O-O {[%clk 0:02:44]}  Nc6 {[%clk 0:02:25]} 9. Nd2 {[%clk 0:02:41]}  O-O {[%clk 0:02:21]} 10. f4 {[%clk 0:02:40]}  Ng4 {[%clk 0:02:19]} 11. Nf3 {[%clk 0:02:23]}  e5 {[%clk 0:02:08]} 12. h3 {[%clk 0:02:23]}  Ne3 {[%clk 0:02:07]} 13. Bxe3 {[%clk 0:02:22]}  dxe3 {[%clk 0:02:08]} 14. c3 {[%clk 0:02:21]}  f5 {[%clk 0:01:58]} 15. Nxe5 {[%clk 0:01:11]}  Nxe5 {[%clk 0:01:52]} 16. fxe5 {[%clk 0:01:11]}  fxe4 {[%clk 0:01:52]} 17. Qb3+ {[%clk 0:01:06]}  Kh8 {[%clk 0:01:49]} 18. d4 {[%clk 0:01:06]}  cxd4 {[%clk 0:01:38]} 19. cxd4 {[%clk 0:01:04]}  Rxf1+ {[%clk 0:00:57]} 20. Rxf1 {[%clk 0:01:02]}  Bd7 {[%clk 0:00:55]} 21. Qxe3 {[%clk 0:00:38]}  Bb5 {[%clk 0:00:55]} 22. Rd1 {[%clk 0:00:31]}  Qb6 {[%clk 0:00:35]} 23. Nc3 {[%clk 0:00:26]}  Ba6 {[%clk 0:00:24]} 24. Rd2 {[%clk 0:00:18]}  Rd8 {[%clk 0:00:19]} 25. Na4 {[%clk 0:00:06]}  Qb4 {[%clk 0:00:15]} 26. Nc3 {[%clk 0:00:06]}  Qb6 {[%clk 0:00:10]} 27. Bxe4 {[%clk 0:00:05]}  Bc4 {[%clk 0:00:05]} 28. Na4 {[%clk 0:00:05]}  Qb4 {[%clk 0:00:03]} 29. Nc3 {[%clk 0:00:05]}  Bg8 {[%clk 0:00:03]} 30. a3 {[%clk 0:00:04]}  Qe7 {[%clk 0:00:03]} 31. h4 {[%clk 0:00:04]}  a6 {[%clk 0:00:02]} 32. Kh2 {[%clk 0:00:04]}  b5 {[%clk 0:00:03]} 33. Bg2 {[%clk 0:00:04]}  b4 {[%clk 0:00:03]} 34. axb4 {[%clk 0:00:04]}  Qxb4 {[%clk 0:00:04]} 35. d5 {[%clk 0:00:04]}  a5 {[%clk 0:00:03]} 36. e6 {[%clk 0:00:04]}  Qd6 {[%clk 0:00:02]} 37. Ne4 {[%clk 0:00:04]}  Qe5 {[%clk 0:00:02]} 38. Qf4 {[%clk 0:00:04]}  Qxf4 {[%clk 0:00:02]} 39. gxf4 {[%clk 0:00:04]}  Bh6 {[%clk 0:00:02]} 40. Kg3 {[%clk 0:00:04]}  Rf8 {[%clk 0:00:02]} 41. Ng5 {[%clk 0:00:04]}  Rd8 {[%clk 0:00:02]} 42. e7 {[%clk 0:00:04]}  Re8 {[%clk 0:00:02]} 43. d6 {[%clk 0:00:04]} 1-0


[Site "https://www.chess.com"]

[Event "Titled Tuesday Blitz May 2 Late 2023"]
[White "Caruana, Fabiano"]
[Black "Terry, Renato"]
[WhiteFideId "2020009"]
[BlackFideId "3803457"]
[WhiteElo "2837"]
[BlackElo "2575"]
[Result "1-0"]
[Round "09"]
[TimeControl "180+2"]
[Date "2023.05.02"]
[WhiteClock "0:00:38"]
[BlackClock "0:00:01"]

1. e4 {[%clk 0:03:00]}  g6 {[%clk 0:02:58]} 2. d4 {[%clk 0:03:00]}  Bg7 {[%clk 0:02:58]} 3. Nc3 {[%clk 0:03:01]}  c6 {[%clk 0:02:59]} 4. h3 {[%clk 0:02:58]}  d5 {[%clk 0:02:58]} 5. Nf3 {[%clk 0:02:59]}  Nh6 {[%clk 0:02:58]} 6. Be2 {[%clk 0:02:57]}  f6 {[%clk 0:02:58]} 7. O-O {[%clk 0:02:57]}  Nf7 {[%clk 0:02:57]} 8. Be3 {[%clk 0:02:57]}  O-O {[%clk 0:02:57]} 9. a4 {[%clk 0:02:57]}  a5 {[%clk 0:02:50]} 10. Re1 {[%clk 0:02:54]}  e6 {[%clk 0:02:47]} 11. Bf1 {[%clk 0:02:54]}  Na6 {[%clk 0:02:46]} 12. Nd2 {[%clk 0:02:49]}  f5 {[%clk 0:02:37]} 13. e5 {[%clk 0:02:45]}  Nxe5 {[%clk 0:02:11]} 14. dxe5 {[%clk 0:02:44]}  d4 {[%clk 0:02:12]} 15. Nc4 {[%clk 0:02:41]}  dxe3 {[%clk 0:02:12]} 16. Rxe3 {[%clk 0:02:39]}  Nc5 {[%clk 0:02:08]} 17. Nd6 {[%clk 0:02:32]}  f4 {[%clk 0:01:50]} 18. Re1 {[%clk 0:02:31]}  Nd7 {[%clk 0:01:40]} 19. Qd4 {[%clk 0:02:10]}  Qb6 {[%clk 0:01:36]} 20. Qxb6 {[%clk 0:02:06]}  Nxb6 {[%clk 0:01:37]} 21. Rad1 {[%clk 0:02:04]}  Rd8 {[%clk 0:01:06]} 22. b3 {[%clk 0:01:56]}  Nd5 {[%clk 0:01:01]} 23. Nxd5 {[%clk 0:01:51]}  exd5 {[%clk 0:00:47]} 24. c4 {[%clk 0:01:49]}  Bf8 {[%clk 0:00:23]} 25. cxd5 {[%clk 0:01:42]}  Bxd6 {[%clk 0:00:22]} 26. exd6 {[%clk 0:01:42]}  Rxd6 {[%clk 0:00:23]} 27. dxc6 {[%clk 0:01:23]}  Rxd1 {[%clk 0:00:24]} 28. cxb7 {[%clk 0:01:19]}  Bxb7 {[%clk 0:00:25]} 29. Rxd1 {[%clk 0:01:19]}  f3 {[%clk 0:00:17]} 30. Bc4+ {[%clk 0:01:18]}  Kf8 {[%clk 0:00:18]} 31. Rd7 {[%clk 0:01:16]}  Bc6 {[%clk 0:00:14]} 32. Rf7+ {[%clk 0:01:13]}  Ke8 {[%clk 0:00:14]} 33. gxf3 {[%clk 0:01:12]}  Rd8 {[%clk 0:00:09]} 34. Kg2 {[%clk 0:01:08]}  Rd6 {[%clk 0:00:03]} 35. Rxh7 {[%clk 0:01:02]}  Rf6 {[%clk 0:00:03]} 36. Be2 {[%clk 0:01:02]}  Kf8 {[%clk 0:00:02]} 37. Rc7 {[%clk 0:00:57]}  Bd5 {[%clk 0:00:01]} 38. Rc3 {[%clk 0:00:56]}  Rb6 {[%clk 0:00:01]} 39. Bb5 {[%clk 0:00:55]}  Bb7 {[%clk 0:00:01]} 40. Kg3 {[%clk 0:00:54]}  Bd5 {[%clk 0:00:02]} 41. Kf4 {[%clk 0:00:51]}  Kg7 {[%clk 0:00:02]} 42. Ke5 {[%clk 0:00:51]}  Bg8 {[%clk 0:00:03]} 43. f4 {[%clk 0:00:45]}  Re6+ {[%clk 0:00:02]} 44. Kd4 {[%clk 0:00:45]}  Rf6 {[%clk 0:00:03]} 45. Kc5 {[%clk 0:00:42]}  Rxf4 {[%clk 0:00:01]} 46. Kb6 {[%clk 0:00:43]}  Rb4 {[%clk 0:00:01]} 47. Kxa5 {[%clk 0:00:43]}  Rxb3 {[%clk 0:00:01]} 48. Rxb3 {[%clk 0:00:43]}  Bxb3 {[%clk 0:00:02]} 49. Kb4 {[%clk 0:00:42]}  Bxa4 {[%clk 0:00:01]} 50. Bxa4 {[%clk 0:00:40]}  Kf6 {[%clk 0:00:02]} 51. Bd1 {[%clk 0:00:38]}  Ke5 {[%clk 0:00:02]} 52. Bg4 {[%clk 0:00:38]}  Kd4 {[%clk 0:00:01]} 53. f3 {[%clk 0:00:38]} 1-0


[Site "https://www.chess.com"]